Cogmind - Beta 13 @@@ ROGUE MODE // 2024.07.27 @ 23:35:50 Player: harambe Result: Destroyed by G-73 Enforcer with Phase Gun Performance ------------- Evolutions (8) 4000 Regions Visited (16) 3200 Robots Destroyed (26) 130 Value Destroyed (937) 937 Prototype IDs (18) 360 Alien Tech Used (2) 400 Bonus (2300) 2300 TOTAL SCORE: 11327 Bonus ------- Met Zhirov 300 Met Sigix 2000 Cogmind --------- Core Integrity 0/1450 Matter 172/300 Energy 98/100 System Corruption 5% Temperature Cool (0) Movement Core (50) Location -2/Quarantine Parts ------- > --- POWER (3) -------- (None) > --- PROPULSION (9) --- (None) > --- UTILITY (9) ------ Advanced Corruption Screen > --- WEAPON (2) ------- (None) > --- INVENTORY (5) ---- Light Neutrino Core Light Quantum Reactor Enhanced Quantum Rifle Gamma Bomb Array Improved Grenade Launcher Peak State ------------ > --- POWER ------------ Enhanced Nuclear Core Micro Fission Core > --- PROPULSION ------- Antigrav System Cooled Gravmag System Cooled Gravmag System Cooled Gravmag System Nuclear Pulse Array Electron Diverter Electron Diverter > --- UTILITY ---------- Improved Cooling System Experimental Energy Well Triangulator Improved Terrain Scanner 0b10 Decoder Chip [Scout] Particle Accelerator Improved Transmission Jammer Advanced Hacking Suite > --- WEAPON ----------- Heavy Neutron Cannon > --- INVENTORY -------- Transdimensional Reconstructor Quantum Rifle Gamma Bomb Array Improved Grenade Launcher Heavy Flail [Rating: 125] Favorites ----------- Power Micro Fission Core Engine Ion Engine Power Core Micro Fission Core Reactor Heavy Antimatter Reactor Propulsion Cooled Gravmag System Treads Light Treads Leg Aluminum Leg Wheel Compact Wheel Hover Unit Cooled Gravmag System Flight Unit Cesium-ion Thruster Utility Improved Terrain Scanner Device Improved Terrain Scanner Storage Small Storage Unit Processor 0b10 Decoder Chip [Scout] Hackware Hacking Suite Protection Improved Light Armor Plating Weapon Assault Rifle Energy Gun Medium Laser Energy Cannon Heavy Neutron Cannon Ballistic Gun Assault Rifle Ballistic Cannon Improved Light Cannon Launcher Improved Grenade Launcher Impact Weapon Heavy Flail Slashing Weapon Chainsword Build | -11 -10 -9 -8 -7 -6 -5 -5 -5 -4 -4 -4 -4 -3 -3 -2 -2 ------- Run | Yrd Mat Mat Mat Fac Fac Fac Was Fac Fac Upp Upp Zhi Pro Res Res Qua Slots Evolved 16 | . . 2 2 2 2 2 . . 2 . . . . 2 2 . Power 2 | . . . 1 . . . . . . . . . . 1 . . Propulsion 7 | . . 1 . 1 2 1 . . 1 . . . . . 1 . Utility 7 | . . 1 1 1 . 1 . . 1 . . . . 1 1 . Weapon . | . . . . . . . . . . . . . . . . . Parts Attached 91 | 2 1 18 5 11 6 3 . 6 6 . 4 8 . 8 10 3 Power 11 | . . 3 1 1 1 . . 1 2 . . . . 1 . 1 Engine 5 | . . 3 1 1 . . . . . . . . . . . . Core 5 | . . . . . 1 . . 1 2 . . . . . . 1 Reactor 1 | . . . . . . . . . . . . . . 1 . . Propulsion 29 | 2 . 7 2 3 2 1 . 2 1 . 1 4 . 3 1 . Treads 4 | . . 2 . . . . . 1 . . 1 . . . . . Leg . | . . . . . . . . . . . . . . . . . Wheel 3 | 2 . 1 . . . . . . . . . . . . . . Hover 6 | . . . . . 1 . . 1 . . . 4 . . . . Flight 16 | . . 4 2 3 1 1 . . 1 . . . . 3 1 . Utility 31 | . 1 3 1 4 3 2 . 2 3 . 1 4 . 1 5 1 Device 21 | . . 1 1 4 3 1 . 2 2 . . 3 . . 4 . Storage 2 | . 1 . . . . . . . . . . . . 1 . . Processor 3 | . . . . . . . . . . . 1 . . . 1 1 Hackware 2 | . . 1 . . . . . . . . . 1 . . . . Protection 3 | . . 1 . . . 1 . . 1 . . . . . . . Artifact . | . . . . . . . . . . . . . . . . . Weapon 20 | . . 5 1 3 . . . 1 . . 2 . . 3 4 1 Energy Gun 10 | . . 4 1 1 . . . . . . 2 . . . 1 1 Energy Cannon 1 | . . . . . . . . . . . . . . 1 . . Ballistic Gun 1 | . . . . 1 . . . . . . . . . . . . Ballistic Cannon 1 | . . 1 . . . . . . . . . . . . . . Launcher 5 | . . . . . . . . 1 . . . . . 2 2 . Special Weapon . | . . . . . . . . . . . . . . . . . Impact Weapon 1 | . . . . . . . . . . . . . . . 1 . Slashing Weapon 1 | . . . . 1 . . . . . . . . . . . . Piercing Weapon . | . . . . . . . . . . . . . . . . . Special Melee Weapon . | . . . . . . . . . . . . . . . . . Unidentified Prototypes 9 | . . . . . 1 . . . . . . 3 . 3 1 1 Parts Lost 41 | . . 2 1 14 . . . . . . 5 . 1 5 13 . Power 4 | . . . . 2 . . . . . . . . . 2 . . Propulsion 17 | . . 1 1 5 . . . . . . 2 . 1 2 5 . Utility 16 | . . 1 . 5 . . . . . . 3 . . 1 6 . Weapon 4 | . . . . 2 . . . . . . . . . . 2 . Highest Loss Streak 11 | . . 2 1 11 . . . . . . 5 . 1 5 7 . To Critical Strikes . | . . . . . . . . . . . . . . . . . Average Slot Usage (%) 68 | . 97 98 100 74 24 41 52 63 62 68 66 53 76 81 55 1 Engine 4 | . 14 11 18 7 . . . . . . . . . . . . Core 2 | . . . . . . . . 5 6 10 10 10 10 8 . . Treads 1 | . . 8 . . . . . 4 4 . . . . . . . Wheel 4 | . 28 14 . . . . . . . . . . . . . . Hover 5 | . . . . . 2 5 5 5 5 5 5 10 24 19 12 . Flight 10 | . . 9 27 22 3 7 11 11 12 15 14 5 5 12 3 . Device 16 | . . 3 18 18 17 25 29 29 28 31 29 19 26 22 14 . Storage 5 | . 25 14 9 5 . . . . . . . . . 3 3 . Processor 1 | . . . . . . . . . . . 1 5 5 4 5 1 Hackware 3 | . . 10 9 5 . . . . . . . 1 5 4 3 . Protection 1 | . . 3 . . . 1 5 5 5 5 1 . . . . . Energy Gun 4 | . 14 11 18 5 . . . . . . 2 . . . . . Ballistic Gun 3 | . 14 9 . 5 . . . . . . . . . . . . Naked Turns 80 | . . . . 1 . . . . . . . . . . 25 54 Heaviest Build 44 | 14 17 17 20 23 4 8 8 13 25 25 37 21 21 43 44 . Greatest Support 64 | 26 26 26 21 25 6 19 19 19 32 32 32 64 64 44 44 3 Greatest Overweight (x) 2 | . . . . 2 . . . . . . 1 . . . 1 . Average Overweight (x) . | . . . . . . . . . . . . . . . . . Largest Inventory Capacity 8 | 8 8 8 8 8 5 5 5 5 5 5 5 5 5 5 5 5 Average Capacity 6 | 8 8 8 8 7 5 5 5 5 5 5 5 5 5 5 5 5 Most Carried 8 | 6 8 8 8 8 5 5 5 5 5 5 5 5 4 5 5 5 Average Carried 5 | 6 7 7 7 7 4 4 5 4 4 5 4 4 4 4 4 4 Final Capacity 8 | 8 8 8 8 5 5 5 5 5 5 5 5 5 5 5 5 5 Final Carried 8 | 6 8 8 7 5 5 5 5 5 5 5 5 4 4 5 4 5 Class Distribution -------------------- 47% | Mutant 33% | Infiltrator-Mutant 12% | Scavenger-Sprinter 5% | Sprinter Dominant Class ---------------- Mutant | -10/Materials Mutant | -9/Materials Scavenger-Sprinter | -8/Materials Scavenger-Sprinter | -7/Factory Mutant | -6/Factory Mutant | -5/Factory Mutant | -5/Waste Mutant | -5/Factory Mutant | -4/Factory Infiltrator-Mutant | -4/Upper Caves Infiltrator-Mutant | -4/Upper Caves Infiltrator-Mutant | -4/Zhirov Infiltrator-Mutant | -3/Proximity Caves Infiltrator-Mutant | -3/Research Infiltrator-Mutant | -2/Research Mutant | -2/Quarantine Resources | -11 -10 -9 -8 -7 -6 -5 -5 -5 -4 -4 -4 -4 -3 -3 -2 -2 ----------- Run | Yrd Mat Mat Mat Fac Fac Fac Was Fac Fac Upp Upp Zhi Pro Res Res Qua Matter Collected 1155 | 169 17 358 40 113 . . . . . 7 271 . 16 119 40 5 Remotely . | . . . . . . . . . . . . . . . . . Salvage Created 1074 | . 17 630 46 239 . . . . . . 102 . . . 40 . Parts 61 | . 2 45 2 8 . . . . . . 4 . . . . . Haulers Intercepted . | . . . . . . . . . . . . . . . . . Recyclers Shooed 1 | . . 1 . . . . . . . . . . . . . . Parts Field Recycled . | . . . . . . . . . . . . . . . . . Retrieved Matter . | . . . . . . . . . . . . . . . . . Parts Self-Destructed 3 | . . . . . . . . . . . 3 . . . . . Prevented . | . . . . . . . . . . . . . . . . . Kills | -11 -10 -9 -8 -7 -6 -5 -5 -5 -4 -4 -4 -4 -3 -3 -2 -2 ------- Run | Yrd Mat Mat Mat Fac Fac Fac Was Fac Fac Upp Upp Zhi Pro Res Res Qua Combat Hostiles Destroyed 23 | . . 16 1 5 . . . . . . 1 . . . . . Melee 2 | . . . . 2 . . . . . . . . . . . . Guns 20 | . . 16 1 2 . . . . . . 1 . . . . . Classes Destroyed 7 | . 1 5 . . . . . . . . . . . . 1 . Worker 1 | . . 1 . . . . . . . . . . . . . . Operator 1 | . 1 . . . . . . . . . . . . . . . Watcher 1 | . . . . . . . . . . . . . . . 1 . Swarmer 4 | . . 4 . . . . . . . . . . . . . . Grunt 10 | . . 7 . 3 . . . . . . . . . . . . Brawler 1 | . . 1 . . . . . . . . . . . . . . Sentry 8 | . . 4 1 2 . . . . . . 1 . . . . . Best Kill Streak 9 | . 1 9 1 3 . . . . . . 1 . . . 1 . Combat Bots Only 8 | . . 8 1 3 . . . . . . 1 . . . . . Max Kills in Single Turn 2 | . 1 2 1 1 . . . . . . 1 . . . 1 . Gunslinging 1 | . . 1 . . . . . . . . . . . . . . Exploded . | . . . . . . . . . . . . . . . . . Melee 1 | . . . . 1 . . . . . . . . . . . . Uniques/NPCs Destroyed . | . . . . . . . . . . . . . . . . . Combat | -11 -10 -9 -8 -7 -6 -5 -5 -5 -4 -4 -4 -4 -3 -3 -2 -2 -------- Run | Yrd Mat Mat Mat Fac Fac Fac Was Fac Fac Upp Upp Zhi Pro Res Res Qua Hostile Shots Fired 722 | . . 81 31 239 16 19 . 28 . 9 84 . 7 36 138 34 Missed 284 | . . 15 15 88 8 12 . 14 . 6 40 . 3 15 55 13 Damage Taken 7067 | . . 795 257 1355 94 118 . 272 . 25 1111 . 102 585 1768 585 Core 3027 | . . 108 80 691 66 46 . 60 . . 489 . . 116 786 585 Absorbed by Shields . | . . . . . . . . . . . . . . . . . Core Remaining (%) 76 | 100 100 73 85 1 92 . . 89 . . . . 57 91 . . Volleys Fired 85 | . 1 51 3 13 . . . 1 . . 6 . . 2 8 . Largest 2 | . 2 2 2 2 . . . 1 . . 2 . . 1 1 . Hottest 188 | . 70 105 128 105 . . . 36 . . 188 . . 36 110 . Shots Fired 155 | . 2 100 6 24 . . . 1 . . 12 . . 2 8 . Gun 145 | . 2 100 6 24 . . . . . . 12 . . . 1 . Cannon 3 | . . . . . . . . . . . . . . . 3 . Launcher 7 | . . . . . . . . 1 . . . . . 2 4 . Special . | . . . . . . . . . . . . . . . . . Kinetic 61 | . 1 47 . 13 . . . . . . . . . . . . Thermal 87 | . 1 53 6 11 . . . . . . 12 . . . 4 . Explosive 7 | . . . . . . . . 1 . . . . . 2 4 . Electromagnetic . | . . . . . . . . . . . . . . . . . Robot Hit Streak 15 | . 2 15 12 9 . . . . . . 10 . . . 1 . Robot Miss Streak 5 | . . 5 1 3 . . . . . . 1 . . 1 2 . Penetration Max . | . . . . . . . . . . . . . . . . . Secondary Targets 2 | . . 2 . . . . . . . . . . . . . . Max Gunslinging Chain 1 | . . 1 . . . . . . . . . . . . . . Shots Hit Robots 120 | . 2 72 5 28 . . . . . . 10 . . . 3 . Core Hits 58 | . 2 32 6 14 . . . . . . 4 . . . . . Critical Kills . | . . . . . . . . . . . . . . . . . Critical Parts Destroyed 2 | . . 1 . . . . . . . . . . . . 1 . Critical Strikes 10 | . . 7 . 2 . . . . . . . . . . 1 . Burn 6 | . . 6 . . . . . . . . . . . . . . Destroy 1 | . . 1 . . . . . . . . . . . . . . Smash 1 | . . . . . . . . . . . . . . . 1 . Sever 2 | . . . . 2 . . . . . . . . . . . . Melee Attacks 10 | . . . . 8 . . . . . . . . . . 2 . Impact 2 | . . . . . . . . . . . . . . . 2 . Slashing 8 | . . . . 8 . . . . . . . . . . . . Piercing . | . . . . . . . . . . . . . . . . . Sneak Attacks 1 | . . . . . . . . . . . . . . . 1 . Combat Hostiles . | . . . . . . . . . . . . . . . . . Follow-up Attacks . | . . . . . . . . . . . . . . . . . Damage Inflicted 2297 | . 27 937 97 670 . . . . . . 286 . . 42 238 . Guns 1836 | . 27 937 97 456 . . . . . . 286 . . . 33 . Cannons 43 | . . . . . . . . . . . . . . . 43 . Explosions 42 | . . . . . . . . . . . . . . 42 . . Melee 349 | . . . . 214 . . . . . . . . . . 135 . Ramming 27 | . . . . . . . . . . . . . . . 27 . Kinetic 661 | . 14 402 . 245 . . . . . . . . . . . . Thermal 1218 | . 13 535 97 211 . . . . . . 286 . . . 76 . Explosive 42 | . . . . . . . . . . . . . . 42 . . Electromagnetic . | . . . . . . . . . . . . . . . . . Impact 135 | . . . . . . . . . . . . . . . 135 . Slashing 214 | . . . . 214 . . . . . . . . . . . . Piercing . | . . . . . . . . . . . . . . . . . Highest Corruption 9 | . 3 . 2 . . . 9 9 . . . . . 2 5 5 Average Corruption 5 | . 2 . 2 . . . 9 9 . . . . . 1 3 5 Corruption Purged . | . . . . . . . . . . . . . . . . . Corruption Blocked . | . . . . . . . . . . . . . . . . . Effects 9 | . 1 . . . . . 1 4 . . . . . . 2 1 Message Errors 2 | . . . . . . . . 2 . . . . . . . . Matter Fused 4 | . . . . . . . . 1 . . . . . . 2 1 Energy Discharges 2 | . 1 . . . . . 1 . . . . . . . . . Data Loss (minor) 1 | . . . . . . . . 1 . . . . . . . . Overload Shots . | . . . . . . . . . . . . . . . . . Overflow Damage 154 | . . . . . . . . . . . . . . 11 143 . Projectiles 8 | . . . . . . . . . . . . . . . 8 . Explosions 11 | . . . . . . . . . . . . . . 11 . . Melee 135 | . . . . . . . . . . . . . . . 135 . Knockbacks 1 | . . . . . . . . . . . . . . . 1 . Impact 1 | . . . . . . . . . . . . . . . 1 . Kinetic . | . . . . . . . . . . . . . . . . . Secondary . | . . . . . . . . . . . . . . . . . Self-Inflicted Damage 41 | . . . . . . . . . . . . . . 28 13 . Shots 1 | . . . . . . . . . . . . . . 1 . . Rammed 1 | . . . . . . . . . . . . . . . 1 . Targets Rammed 1 | . . . . . . . . . . . . . . . 1 . Kicked . | . . . . . . . . . . . . . . . . . Crushed . | . . . . . . . . . . . . . . . . . Highest Temperature 752 | . 9 215 93 117 . . . . . 2 752 . . . . . Average Temperature 132 | . 6 85 40 38 . . . . . 2 357 . . . . . Received Heat Transfer 1489 | . . 300 45 498 33 9 . 105 . 9 199 . . 39 225 27 Effects 13 | . . 1 . . . . . . . . 12 . . . . . Shutdowns 6 | . . . . . . . . . . . 6 . . . . . Energy Bleed 2 | . . 1 . . . . . . . . 1 . . . . . Matter Decay 1 | . . . . . . . . . . . 1 . . . . . Short Circuit 2 | . . . . . . . . . . . 2 . . . . . Damage (minor) 1 | . . . . . . . . . . . 1 . . . . . Damage (core) 1 | . . . . . . . . . . . 1 . . . . . Siege Activations . | . . . . . . . . . . . . . . . . . Robots Corrupted . | . . . . . . . . . . . . . . . . . Combat Hostiles . | . . . . . . . . . . . . . . . . . Parts Fried 1 | . . . . . . . . . . . . . . . 1 . Impact Corruptions 4 | . . . . . . . . . . . . . . . 4 . Robots Melted 1 | . . . . 1 . . . . . . . . . . . . Combat Hostiles 1 | . . . . 1 . . . . . . . . . . . . Parts Melted 7 | . . 5 . 1 . . . . . . 1 . . . . . Heat Transferred 2984 | . 37 1911 154 475 . . . . . . 370 . . . 37 . Parts Sabotaged . | . . . . . . . . . . . . . . . . . Parts Stolen . | . . . . . . . . . . . . . . . . . Parts Stripped . | . . . . . . . . . . . . . . . . . Power Chain Reactions . | . . . . . . . . . . . . . . . . . Alert | -11 -10 -9 -8 -7 -6 -5 -5 -5 -4 -4 -4 -4 -3 -3 -2 -2 ------- Run | Yrd Mat Mat Mat Fac Fac Fac Was Fac Fac Upp Upp Zhi Pro Res Res Qua Peak Influence 394 | . 54 394 387 319 170 158 100 249 121 . . . . 74 244 111 Initial 175 | . . 22 172 175 77 83 55 70 121 . . . . . 24 25 Average 132 | . 15 162 230 218 103 128 62 116 121 . . . . 13 95 72 Maximum Alert Level 1 | . . 1 1 1 . . . 1 . . . . . . 1 . Low Security (%) 79 | 100 100 67 35 47 100 100 100 95 100 . . . . 100 92 100 Level 1 20 | . . 32 64 52 . . . 4 . . . . . . 7 . Level 2 . | . . . . . . . . . . . . . . . . . Level 3 . | . . . . . . . . . . . . . . . . . Level 4 . | . . . . . . . . . . . . . . . . . Level 5 . | . . . . . . . . . . . . . . . . . High Security . | . . . . . . . . . . . . . . . . . Max Security . | . . . . . . . . . . . . . . . . . Squads Dispatched 11 | . . 1 1 2 3 . . . . . . . . . 1 3 Investigation 5 | . . 1 1 1 1 . . . . . . . . . . 1 Extermination . | . . . . . . . . . . . . . . . . . Reinforcement 6 | . . . . 1 2 . . . . . . . . . 1 2 Assault . | . . . . . . . . . . . . . . . . . Garrison . | . . . . . . . . . . . . . . . . . Intercept . | . . . . . . . . . . . . . . . . . Searches Triggered . | . . . . . . . . . . . . . . . . . Construction Impeded . | . . . . . . . . . . . . . . . . . Haulers Reinforced . | . . . . . . . . . . . . . . . . . Active Scanning Responses . | . . . . . . . . . . . . . . . . . Cargo Convoy Interrupts . | . . . . . . . . . . . . . . . . . Stealth | -11 -10 -9 -8 -7 -6 -5 -5 -5 -4 -4 -4 -4 -3 -3 -2 -2 --------- Run | Yrd Mat Mat Mat Fac Fac Fac Was Fac Fac Upp Upp Zhi Pro Res Res Qua Distress Signals 5 | . . 1 1 . 1 . . . . . . . . 1 1 . Communications Jammed 12 | . . . . . . . . . . . . . . 4 8 . Distress Signals 12 | . . . . . . . . . . . . . . 4 8 . Times Spotted 155 | . 2 26 14 11 11 6 7 10 . 2 15 . 1 6 29 15 Peak Tracking Total 12 | . 2 6 11 6 7 4 5 5 . 2 9 . 1 7 12 7 Tactical Retreats 25 | . 1 1 1 3 2 2 1 3 . . 3 . . 1 6 1 Traps | -11 -10 -9 -8 -7 -6 -5 -5 -5 -4 -4 -4 -4 -3 -3 -2 -2 ------- Run | Yrd Mat Mat Mat Fac Fac Fac Was Fac Fac Upp Upp Zhi Pro Res Res Qua Traps Triggered 9 | . 2 . 2 1 1 1 . . . . . . . . . 2 Indirectly . | . . . . . . . . . . . . . . . . . Trap Hack Attempts . | . . . . . . . . . . . . . . . . . Triggered . | . . . . . . . . . . . . . . . . . Disarmed . | . . . . . . . . . . . . . . . . . Reprogrammed . | . . . . . . . . . . . . . . . . . Reused . | . . . . . . . . . . . . . . . . . Traps Extracted . | . . . . . . . . . . . . . . . . . Installed . | . . . . . . . . . . . . . . . . . Triggered . | . . . . . . . . . . . . . . . . . Machines | -11 -10 -9 -8 -7 -6 -5 -5 -5 -4 -4 -4 -4 -3 -3 -2 -2 ---------- Run | Yrd Mat Mat Mat Fac Fac Fac Was Fac Fac Upp Upp Zhi Pro Res Res Qua Machines Disabled . | . . . . . . . . . . . . . . . . . Max in Single Turn . | . . . . . . . . . . . . . . . . . Machines Repaired . | . . . . . . . . . . . . . . . . . Machines Dismantled . | . . . . . . . . . . . . . . . . . Machines Sabotaged . | . . . . . . . . . . . . . . . . . Overloaded Fab Kills . | . . . . . . . . . . . . . . . . . Hacking | -11 -10 -9 -8 -7 -6 -5 -5 -5 -4 -4 -4 -4 -3 -3 -2 -2 --------- Run | Yrd Mat Mat Mat Fac Fac Fac Was Fac Fac Upp Upp Zhi Pro Res Res Qua Machines Accessed 27 | . 1 4 1 5 1 3 . . 1 1 . 8 . . . 2 Terminals 15 | . 1 3 . 5 . 3 . . 1 . . . . . . 2 Fabricators 1 | . . . . . 1 . . . . . . . . . . . Repair Stations . | . . . . . . . . . . . . . . . . . Recycling Units . | . . . . . . . . . . . . . . . . . Scanalyzers 2 | . . 1 1 . . . . . . . . . . . . . Garrison Access . | . . . . . . . . . . . . . . . . . Total Hacks 76 | . 1 7 2 6 3 4 . . 1 1 . 47 . . . 4 Successful 64 | . 1 5 2 1 2 2 . . . 1 . 47 . . . 3 Failed 12 | . . 2 . 5 1 2 . . 1 . . . . . . 1 Catastrophic 4 | . . . . 2 . 1 . . . . . . . . . 1 Database Lockouts . | . . . . . . . . . . . . . . . . . Manual . | . . . . . . . . . . . . . . . . . Terminals 20 | . 1 4 . 6 . 4 . . 1 . . . . . . 4 Fabricators 3 | . . . . . 3 . . . . . . . . . . . Repair Stations . | . . . . . . . . . . . . . . . . . Recycling Units . | . . . . . . . . . . . . . . . . . Scanalyzers 5 | . . 3 2 . . . . . . . . . . . . . Garrison Access . | . . . . . . . . . . . . . . . . . Terminal Hacks 57 | . 1 2 . 1 . 2 . . . 1 . 47 . . . 3 Record 35 | . . . . . . . . . . . . 35 . . . . Part Schematic 4 | . . . . . . . . . . . . 4 . . . . Robot Analysis 4 | . . . . . . . . . . . . 4 . . . . Prototype ID Bank 4 | . . . . . . . . . . . . 4 . . . . Open Door 2 | . . . . . . . . . . 1 . . . . . 1 Emergency Access Points 2 | . . . . . . 1 . . . . . . . . . 1 Locate Traps 1 | . . . . . . 1 . . . . . . . . . . Dispatch Records 1 | . 1 . . . . . . . . . . . . . . . Investigation Status 1 | . . . . 1 . . . . . . . . . . . . Zone Layout 3 | . . 2 . . . . . . . . . . . . . 1 Fabricator Hacks 2 | . . . . . 2 . . . . . . . . . . . Load Schematic 1 | . . . . . 1 . . . . . . . . . . . Build 1 | . . . . . 1 . . . . . . . . . . . Repair Station Hacks . | . . . . . . . . . . . . . . . . . Recycling Unit Hacks . | . . . . . . . . . . . . . . . . . Scanalyzer 5 | . . 3 2 . . . . . . . . . . . . . Insert Component 3 | . . 2 1 . . . . . . . . . . . . . Analyze 2 | . . 1 1 . . . . . . . . . . . . . Garrison Access Hacks . | . . . . . . . . . . . . . . . . . Unauthorized Hacks . | . . . . . . . . . . . . . . . . . Terminals . | . . . . . . . . . . . . . . . . . Fabricators . | . . . . . . . . . . . . . . . . . Repair Stations . | . . . . . . . . . . . . . . . . . Recycling Units . | . . . . . . . . . . . . . . . . . Scanalyzers . | . . . . . . . . . . . . . . . . . Garrison Access . | . . . . . . . . . . . . . . . . . Data Cores Recovered 1 | . 1 . . . . . . . . . . . . . . . Used . | . . . . . . . . . . . . . . . . . Hacking Detections 14 | . . 3 . 5 1 3 . . 1 . . . . . . 1 Full Trace Events 4 | . . 1 . 1 1 . . . . . . . . . . 1 Feedback Events . | . . . . . . . . . . . . . . . . . Feedback Blocked . | . . . . . . . . . . . . . . . . . Robot Schematics Acquired 1 | . . . . . . . . . . . . . . . . 1 Robots Built . | . . . . . . . . . . . . . . . . . Authchips . | . . . . . . . . . . . . . . . . . Time . | . . . . . . . . . . . . . . . . . Total Robot Build Rating . | . . . . . . . . . . . . . . . . . Part Schematics Acquired 9 | . . 1 1 . . . . . . . . 4 . . . 3 Parts Built . | . . . . . . . . . . . . . . . . . Authchips . | . . . . . . . . . . . . . . . . . Time 73 | . . . . . 73 . . . . . . . . . . . Total Part Build Rating . | . . . . . . . . . . . . . . . . . Parts Repaired . | . . . . . . . . . . . . . . . . . Time . | . . . . . . . . . . . . . . . . . Parts Recycled . | . . . . . . . . . . . . . . . . . Recycled Matter . | . . . . . . . . . . . . . . . . . Retrieved Matter . | . . . . . . . . . . . . . . . . . Retrieved Components . | . . . . . . . . . . . . . . . . . Parts Scanalyzed 2 | . . 1 1 . . . . . . . . . . . . . Part Schematics Acquired 2 | . . 1 1 . . . . . . . . . . . . . Parts Damaged . | . . . . . . . . . . . . . . . . . Bothacking | -11 -10 -9 -8 -7 -6 -5 -5 -5 -4 -4 -4 -4 -3 -3 -2 -2 ------------ Run | Yrd Mat Mat Mat Fac Fac Fac Was Fac Fac Upp Upp Zhi Pro Res Res Qua Used RIF Installer . | . . . . . . . . . . . . . . . . . Robots Hacked . | . . . . . . . . . . . . . . . . . Non-combat . | . . . . . . . . . . . . . . . . . Combat . | . . . . . . . . . . . . . . . . . Robot Hacks Applied . | . . . . . . . . . . . . . . . . . Relay Couplers Released . | . . . . . . . . . . . . . . . . . Fabnet Peak Effective % . | . . . . . . . . . . . . . . . . . Robots Rewired 1 | . . . . 1 . . . . . . . . . . . . Allies Hacked . | . . . . . . . . . . . . . . . . . Hacks Repelled . | . . . . . . . . . . . . . . . . . Allies | -11 -10 -9 -8 -7 -6 -5 -5 -5 -4 -4 -4 -4 -3 -3 -2 -2 -------- Run | Yrd Mat Mat Mat Fac Fac Fac Was Fac Fac Upp Upp Zhi Pro Res Res Qua Total Allies 1 | . . . . 1 . . . . . . . . . . . . Largest Group 1 | . . . . 1 . . . . . . . . . . . . Highest-Rated Group 22 | . . . . 22 . . . . . . . . . . . . Highest-Rated Ally 22 | . . . . 22 . . . . . . . . . . . . Total Orders . | . . . . . . . . . . . . . . . . . Ally Attacks 4 | . . . . 4 . . . . . . . . . . . . Total Damage 55 | . . . . 55 . . . . . . . . . . . . Kills 1 | . . . . 1 . . . . . . . . . . . . Allies Corrupted . | . . . . . . . . . . . . . . . . . Allies Melted . | . . . . . . . . . . . . . . . . . Intel | -11 -10 -9 -8 -7 -6 -5 -5 -5 -4 -4 -4 -4 -3 -3 -2 -2 ------- Run | Yrd Mat Mat Mat Fac Fac Fac Was Fac Fac Upp Upp Zhi Pro Res Res Qua Robot Analysis Total 4 | . . . . . . . . . . . . 4 . . . . Derelict Logs Recovered 3 | . . . . . . . . . . 2 1 . . . . . Drone Launches . | . . . . . . . . . . . . . . . . . Drone Recoveries . | . . . . . . . . . . . . . . . . . Decoded 0b10 Intel 12 | . . . . . . . . . . . . . . 4 8 . Traps 4 | . . . . . . . . . . . . . . . 4 . Emergency Access 8 | . . . . . . . . . . . . . . 4 4 . Exploration | -11 -10 -9 -8 -7 -6 -5 -5 -5 -4 -4 -4 -4 -3 -3 -2 -2 ------------- Run | Yrd Mat Mat Mat Fac Fac Fac Was Fac Fac Upp Upp Zhi Pro Res Res Qua Turns Passed 3091 | 3 158 535 109 460 224 119 23 173 68 158 229 101 98 126 416 91 Spaces Moved 4906 | 1 169 448 201 836 381 292 62 239 92 400 280 164 252 270 653 166 Core 531 | . . . . 178 113 . . . . . . . . . 74 166 Treads 4 | . . 3 . . . . . . . . 1 . . . . . Legs . | . . . . . . . . . . . . . . . . . Wheels 397 | 1 169 227 . . . . . . . . . . . . . . Hover 1539 | . . . . . . . . . . . 274 164 252 270 579 . Flight 2435 | . . 218 201 658 268 292 62 239 92 400 5 . . . . . Fastest Speed 26 | 90 90 29 29 26 40 37 37 37 34 34 34 38 38 40 40 50 Average Speed 47 | 90 90 60 29 32 42 38 37 67 62 34 60 52 38 40 54 50 Slowest Speed 240 | 90 90 160 29 150 50 40 37 77 77 34 240 60 40 40 92 50 Overloaded Moves . | . . . . . . . . . . . . . . . . . Propulsion Burnouts . | . . . . . . . . . . . . . . . . . Robots Hopped 24 | . . 13 . 1 3 2 . 3 1 1 . . . . . . Cave-ins Triggered . | . . . . . . . . . . . . . . . . . Teleports 1 | . . . . . . . . . . . . . . . 1 . Exploration Rate (%) 31 | 2 24 41 24 24 18 12 85 11 3 61 54 62 61 12 22 27 Regions Visited 16 Branch Regions 5 Pre-discovered Areas 3 | . . . . . . . . . . . . 3 . . . . Known Exits Taken 1 | . . . . . . . . . . . . . . 1 . . Unknown Exits Taken 13 | 1 1 1 1 1 1 . . 1 1 1 1 1 1 . 1 . Scrap Searched 4 | . . . . . . . . . . . 3 . 1 . . . Spaces Dug 52 | . . . . . . . . 10 . . . . . 8 34 . Terrain Destroyed 71 | . . . . . . . . 10 . . 2 . . 16 43 . Melee 1 | . . . . . . . . . . . . . . . 1 . Projectile 3 | . . . . . . . . . . . 2 . . . 1 . AOE 67 | . . . . . . . . 10 . . . . . 16 41 . Terrain Rammed . | . . . . . . . . . . . . . . . . . Walls Destroyed . | . . . . . . . . . . . . . . . . . Machines Disabled . | . . . . . . . . . . . . . . . . . Actions | -11 -10 -9 -8 -7 -6 -5 -5 -5 -4 -4 -4 -4 -3 -3 -2 -2 --------- Run | Yrd Mat Mat Mat Fac Fac Fac Was Fac Fac Upp Upp Zhi Pro Res Res Qua Total 5478 | 2 172 602 247 988 435 295 61 246 99 422 329 175 251 283 695 176 Wait 278 | . . 66 30 78 32 . . . . 20 34 . . . 18 . Move 4846 | . 168 424 200 833 374 288 61 232 89 397 279 163 251 269 652 166 Hop 21 | . . 10 . 1 3 2 . 3 1 1 . . . . . . Pick Up 41 | . 2 14 5 10 . 1 . . 1 2 1 1 . 1 1 2 Fast Attach 49 | . 1 5 . 3 6 3 . 3 2 . 2 8 . 6 7 3 Attach 23 | . . 5 3 4 . . . 1 1 . 2 1 . 2 4 . Detach 13 | . . 1 . 1 1 . . 2 . . 2 . . 2 2 2 Swap 21 | 2 . 8 2 4 . . . 2 3 . . . . . . . Drop 50 | . . 18 4 11 1 1 . 2 2 2 3 2 . 1 . 3 Fire 85 | . 1 51 3 13 . . . 1 . . 6 . . 2 8 . Melee 10 | . . . . 8 . . . . . . . . . . 2 . Ram 1 | . . . . . . . . . . . . . . . 1 . Kick . | . . . . . . . . . . . . . . . . . Crush . | . . . . . . . . . . . . . . . . . Escape Stasis 38 | . . . . 20 18 . . . . . . . . . . . Rewire 2 | . . . . 2 . . . . . . . . . . . . Trap . | . . . . . . . . . . . . . . . . . Miscellaneous . | . . . . . . . . . . . . . . . . . Route ------- -11/Scrapyard -10/Materials (discovered 2 exits: *Mat / [*Min]) -9/Materials (discovered 2 exits: *Mat / [*Min]) -8/Materials -7/Factory -6/Factory -5/Factory -5/Waste -5/Factory -4/Factory -4/Upper Caves -4/Upper Caves -4/Zhirov -3/Proximity Caves -3/Research (discovered 2 exits: *Res x2) -2/Research -2/Quarantine History --------- Turn | Location | Event 4 | -11/Scrapyard | Discovered new exit (range 0) 4 | -11/Scrapyard | Entered Materials 58 | -10/Materials | Discovered new exit (range 5) 80 | -10/Materials | Discovered new exit (range 9) 162 | -10/Materials | Entered another Materials area 162 | -9/Materials | Evolved 2 slots: Propulsion x1, Utility x1 318 | -9/Materials | Build established: Mutant 539 | -9/Materials | Discovered new exit (range 14) 543 | -9/Materials | Destroyed 8 combat bots 696 | -9/Materials | Discovered new exit (range 3) 697 | -9/Materials | Entered another Materials area 697 | -8/Materials | Evolved 2 slots: Power x1, Utility x1 800 | -8/Materials | Discovered new exit (range 16) 806 | -8/Materials | Entered Factory 806 | -7/Factory | Evolved 2 slots: Propulsion x1, Utility x1 964 | -7/Factory | Build established: Scavenger-Sprinter 1076 | -7/Factory | Lost 3 parts (2p1n) 1167 | -7/Factory | Core integrity fell below 50% 1177 | -7/Factory | Core integrity fell below 20% 1204 | -7/Factory | Lost 11 parts (4n5u2w) 1264 | -7/Factory | Discovered new exit (range 4) 1266 | -7/Factory | Entered another Factory area 1266 | -6/Factory | Evolved 2 slots: Propulsion x2 1405 | -6/Factory | Build established: Mutant 1485 | -6/Factory | Discovered new exit (range 14) 1490 | -6/Factory | Entered another Factory area 1490 | -5/Factory | Evolved 2 slots: Propulsion x1, Utility x1 1609 | -5/Factory | Sucked down chute 1609 | -5/Factory | Entered Waste 1612 | -5/Waste | Spotted C-40 Crusher 1613 | -5/Waste | Spotted C-40 Crusher 1623 | -5/Waste | Spotted C-40 Crusher 1624 | -5/Waste | EMP discharged 1624 | -5/Waste | Spotted C-40 Crusher 1627 | -5/Waste | Discovered new exit (range 16) 1629 | -5/Waste | Spotted C-40 Crusher 1632 | -5/Waste | Entered Factory 1784 | -5/Factory | Discovered new exit (range 15) 1805 | -5/Factory | Entered another Factory area 1805 | -4/Factory | Evolved 2 slots: Propulsion x1, Utility x1 1869 | -4/Factory | Discovered new exit (range 13) 1873 | -4/Factory | Entered Upper Caves 1915 | -4/Upper Caves | Learned 4 Research zone layouts 1999 | -4/Upper Caves | Attracted the attention of an 0b10 checkpoint 2001 | -4/Upper Caves | Spotted B-86 Titan 2010 | -4/Upper Caves | Learned location of 1 exit from Research 2027 | -4/Upper Caves | Discovered new exit (range 15) 2031 | -4/Upper Caves | Entered another Upper Caves area 2046 | -4/Upper Caves | Attracted the attention of an 0b10 outpost 2134 | -4/Upper Caves | Build established: Infiltrator-Mutant 2136 | -4/Upper Caves | Learned 8 Research zone layouts 2257 | -4/Upper Caves | Discovered new exit (range 7) 2260 | -4/Upper Caves | Entered Zhirov 2260 | -4/Zhirov | Discovered new exit (range 3) 2271 | -4/Zhirov | Met Zhirov 2279 | -4/Zhirov | Lost 5 parts (2n3u) 2282 | -4/Zhirov | Learned location of Quarantine (-2) 2282 | -4/Zhirov | Learned location of Testing (-3) 2282 | -4/Zhirov | Learned location of Command (-1) 2295 | -4/Zhirov | Zhirov requested help retrieving the SGEMP Prototype 2306 | -4/Zhirov | Found Alien Artifact 2306 | -4/Zhirov | Identified Integrated Dissipator 2306 | -4/Zhirov | Installed Integrated Dissipator, increased core heat dissipation (+20) 2315 | -4/Zhirov | Found Alien Artifact 2361 | -4/Zhirov | Entered Proximity Caves 2423 | -3/Proximity Caves | Spotted B-86 Titan 2453 | -3/Proximity Caves | Discovered new exit (range 15) 2459 | -3/Proximity Caves | Entered Research 2459 | -3/Research | Evolved 2 slots: Power x1, Utility x1 2460 | -3/Research | Identified exit to Research 2484 | -3/Research | Found Gamma Bomb Array 2507 | -3/Research | Spotted B-86 Titan 2585 | -3/Research | Entered another Research area 2585 | -2/Research | Evolved 2 slots: Propulsion x1, Utility x1 2616 | -2/Research | Lost 5 parts (2p2n1u) 2774 | -2/Research | Lost 3 parts (1n2u) 2875 | -2/Research | Spotted B-90 Cyclops 2890 | -2/Research | Identified Transdimensional Reconstructor 2890 | -2/Research | Warped through subspace 2920 | -2/Research | Lost 3 parts (1n1u1w) 2945 | -2/Research | Spotted B-90 Cyclops 2956 | -2/Research | Released all parts (9) 2995 | -2/Research | Discovered new exit (range 13) 2995 | -2/Research | Spotted B-90 Cyclops 2997 | -2/Research | Core integrity fell below 50% 3001 | -2/Research | Entered Quarantine 3003 | -2/Quarantine | Lost 7 parts (3n3u1w) 3015 | -2/Quarantine | Core integrity fell below 20% 3046 | -2/Quarantine | Met incapacitated Sigix Warrior 3046 | -2/Quarantine | Lockdown squad dispatched 3092 | -2/Quarantine | Destroyed by G-73 Enforcer with Phase Gun Last Messages --------------- 03062_ Dropped Quantum Reactor. 03063_ Acquired Lgt. Neutrino Core. 03063_ U-05 Engineer lays Concrete. 03064_ K-01 Serf collects debris. 03065_ O-24 Administrator: "IFF HANDSHAKE FAILED. SECURING TERMINAL." 03072_ Acquired Enh. Quantum Rifle. 03073_ O-24 Administrator uses terminal to summon reinforcements. 03073_ ALERT: Hostiles spotted, dispatching reinforcements to Terminal Q008. 03073_ O-24 Administrator locks terminal. 03073_ Dropped Quantum Rifle. 03075_ Connecting with Terminal... >>Access(Emergency) Found 2 emergency access doors: (48,2) (50,2) Map updated. >>Layout(Zone) Retrieving Zone 1I layout... Downloaded map data. Map ----- +----------------------------------------------------+ | | | | | | | | | | | | | | | | | | | | | | | | | | | | | | | | | | | | | ################?###############?????????????????? | | # ### #?????????????????? | | # + + """ """ #?????????????????? | | # """"" ### """" """" =#?????????????????? | | # ! """""" #?# """" """" #?????????????????? | | # """""" #?# """ """ #?????????????????? | | # " """ #?# #?????????????????? | | # #?########@######?????????????????? | | #########+######??????? #?????????????????????? | | ####### #?????????# #?????????????????????? | | T #?????????# #?????????????????????? | | "" ??? #?????????????????????? | | #######??## #?????????????????????? | | #######! #?????????# g #?????????????????????? | | #?????#### ##?????????# #?????????????????????? | | ?????????# ##?????????# gg?????????????????????? | | ?????????# ?????????# k?????????????????????? | | ?????????# ##?????????# ?????????????????????? | | ######???# #??????????# ?????????????????????? | | """#???# #??????????######?????????????????????? | | """#???# #?????????????????????????????????????? | | !""#???# #?????????????????????????????????????? | | """#???# #?????????????????????????????????????? | | """#???# #?????????????????????????????????????? | | ######???# #?????????????????????????????????????? | | ########## #?????????????????????????????????????? | | # # #?????????????????????????????????????? | | #????????????????????????????????????????????????? | | #????????????????????????????????????????????????? | | #????????????????????????????????????????????????? | | +????????????????????????????????????????????????? | | #????????????????????????????????????????????????? | +----------------------------------------------------+ Best States ------------- Heat Dissipation 96 Energy Generation 35 Energy Capacity 990 Matter Stores 300 Matter Capacity 300 Sight Range 16 Robot Scan Range 16 Terrain Scan Range 16 Terrain Scan Density 10 Jamming Range 14 Power Amplification 30 Additional Mass Support 6 Corruption Block 16 Armor Coverage 150 Evasion (%) 64 Targeting Accuracy 8 Recoil Reduction 2 Particle Charging 30 Offensive Hacking 14 Item Schematics ----------------- Cesium-ion Thruster | -9/Materials | Scanalyzed Imp. Grenade Launcher | -8/Materials | Scanalyzed Assault Drone Bay | -4/Zhirov | Free Exp. Heat Sink | -4/Zhirov | Free Imp. Arc Thrower | -4/Zhirov | Free Exp. Optical Array | -4/Zhirov | Free Exp. ECM Suite | -2/Quarantine | Archive Hvy. Dispersion Rifle | -2/Quarantine | Archive Cld. Gravmag System | -2/Quarantine | Archive Robot Schematics ------------------ H-88 Terminator | -2/Quarantine | Archive Fabricated ------------ Nothing Alien Tech Used ----------------- Integrated Dissipator Transdimensional Reconstructor Achievements -------------- None Challenges ------------ None Game ------ Seed XenonTacticalDetonator Manual? 0 Play Time 02:05:19 Cumulative 90.2 hours Start 2024.07.27 @ 21:01:33 End 2024.07.27 @ 23:35:50 Sessions 1 Manual Loads 0 Difficulty Rogue Special Mode None Game No. 47 Rogue 47 Adventurer 0 Explorer 0 Win Type - Total 0 Types 0/0/0/0/0/0/0/0/0 Lore% 29 Gallery% 46 Achievement% 32 Wizard Run 0 Options --------- Layout 0 ASCII 0 Keyboard 0 Movement Numpad Keybinds 0 Fullscreen 1 Font 18/SmallcapsGlow Map View 76x50 Zoom Use 0% Tactical HUD 1 Map Filters NONE Filters NONE Steam 1 RUN: 27de38ae-26e5-4f12-9f4c-32ec57041739